fUST/lending_fUST_20240128
["ID","MTS","AMOUNT","RATE_DAILY","PERIOD"]
[312904869,1706449841895,-500.0,0.00021917,2]
[312904870,1706449841907,-500.0,0.00021917,2]
[312904871,1706449841921,-507.68,0.00021917,2]
[312904872,1706449841932,-500.0,0.00021917,2]
[312904873,1706449841943,-500.0,0.00021917,2]
[312904874,1706449841955,-875.19,0.00021917,2]
[312904875,1706449841967,-500.0,0.00021917,2]
[312904876,1706449841979,-500.0,0.00021917,2]
[312904877,1706449841991,-500.0,0.00021917,2]
[312904878,1706449842002,-500.0,0.00021917,2]
[312904879,1706449842014,-501.09,0.00021917,2]
[312904880,1706449842026,-1219.28,0.00021917,2]
[312904881,1706449842039,-500.0,0.00021917,2]
[312904882,1706449842050,-247.185849,0.00021917,2]
[312904883,1706449842062,-247.185849,0.00021917,2]
[312904884,1706449842074,-247.185849,0.00021917,2]
[312904885,1706449842086,-247.185849,0.00021917,2]
[312904886,1706449842099,-247.185849,0.00021917,2]
[312904887,1706449842111,-247.185849,0.00021917,2]
[312904888,1706449842123,-247.185849,0.00021917,2]
[312904889,1706449842136,-247.185849,0.00021917,2]
[312904890,1706449842148,-247.185849,0.00021917,2]
[312904891,1706449842160,-247.185849,0.00021917,2]
[312904892,1706449842171,-500.0,0.00021917,2]
[312904893,1706449842183,-2219.22,0.00021917,2]
[312904894,1706449842195,-694.71,0.00021917,2]
[312904895,1706449842207,-155.02635448,0.00021917,2]
[312904896,1706449842218,-501.56619566,0.00021917,2]
[312904897,1706449842231,-500.0,0.00021917,2]
[312904898,1706449842244,-11221.03,0.00021917,2]
[312904899,1706449842255,-535.6646005,0.00021917,2]
[312904900,1706449842267,-2872.15,0.00021917,2]
[312904901,1706449842279,-500.0,0.00021917,2]
[312904902,1706449842291,-500.0,0.00021917,2]
[312904903,1706449842303,-500.0,0.00021917,2]
[312904904,1706449842314,-500.0,0.00021917,2]
[312904905,1706449842326,-500.0,0.00021917,2]
[312904906,1706449842338,-500.0,0.00021917,2]
[312904907,1706449842350,-500.0,0.00021917,2]
[312904908,1706449842362,-624.72253014,0.00021917,2]
[312904909,1706449842371,-500.0,0.00021917,2]
[312904914,1706449842478,-500.0,0.00021917,2]
[312904916,1706449842491,-500.0,0.00021917,2]
[312904917,1706449842502,-2383.88,0.00021917,2]
[312904918,1706449842513,-500.0,0.00021917,2]
[312904919,1706449842523,-500.0,0.00021917,2]
[312904920,1706449842532,-932.43,0.00021917,2]
[312904921,1706449842541,-500.0,0.00021917,2]
[312904923,1706449842550,-500.0,0.00021917,2]
[312904924,1706449842561,-5403.66,0.00021917,2]
[312904926,1706449842570,-500.0,0.00021917,2]
[312904928,1706449842579,-500.0,0.00021917,2]
[312904930,1706449842588,-500.0,0.00021917,2]
[312904932,1706449842598,-500.0,0.00021917,2]
[312904933,1706449842609,-185.58917988,0.00021917,2]
[312904934,1706449842618,-818.16,0.00021917,2]
[312904935,1706449842628,-3837.4,0.00021917,2]
[312904936,1706449842637,-503.02,0.00021917,2]
[312904937,1706449842646,-981.65,0.00021917,2]
[312904938,1706449842655,-2484.13,0.00021917,2]
[312904939,1706449842665,-3699.519471,0.00021917,2]
[312904940,1706449842674,-3699.519471,0.00021917,2]
[312904941,1706449842683,-3699.519471,0.00021917,2]
[312904942,1706449842692,-3699.519471,0.00021917,2]
[312904943,1706449842701,-3699.519471,0.00021917,2]
[312904944,1706449842711,-3699.519471,0.00021917,2]
[312904945,1706449842720,-3699.519471,0.00021917,2]
[312904946,1706449842729,-3699.519471,0.00021917,2]
[312904947,1706449842739,-3699.519471,0.00021917,2]
[312904948,1706449842748,-3699.519471,0.00021917,2]
[312904949,1706449842757,-3699.519471,0.00021917,2]
[312904950,1706449842766,-500.0,0.00021917,2]
[312904951,1706449842775,-3699.519471,0.00021917,2]
[312904952,1706449842784,-500.0,0.00021917,2]
[312904953,1706449842793,-500.0,0.00021917,2]
[312904954,1706449842802,-500.0,0.00021917,2]
[312904955,1706449842811,-511.78379089,0.00021917,2]
[312904956,1706449842820,-151.0,0.00021917,2]
[312904957,1706449842829,-151.0,0.00021917,2]
[312904958,1706449842838,-151.0,0.00021917,2]
[312904959,1706449842847,-4590.51,0.00021917,2]
[312904960,1706449842856,-500.0,0.00021917,2]
[312904961,1706449842865,-500.0,0.00021917,2]
[312904962,1706449842875,-500.0,0.00021917,2]
[312904963,1706449842884,-500.0,0.00021917,2]
[312904964,1706449842893,-500.0,0.00021917,2]
[312904966,1706449842902,-3142.84,0.00021917,2]
[312904968,1706449842911,-14972.59352521,0.00021917,2]
[312904970,1706449842929,-10202.84952288,0.00021917,2]
[312904972,1706449843241,-441.89695191,0.00021917,2]
[312904973,1706449843250,-500.0,0.00021917,2]
[312904974,1706449843259,-416.73410054,0.00021917,2]
[312904985,1706449846151,-257.30468228,0.00021811,2]
[312904991,1706449994865,261.77080039,0.00021914,7]
[312904992,1706449995100,2712.73724692,0.00014897,5]
[312904993,1706450011099,2712.73724692,0.00019718,5]
[312904994,1706450011532,1041.95917541,0.000222,7]
[312904995,1706450021822,155.00775039,0.00016433,3]
[312904996,1706450031115,2712.73724692,0.00019718,5]
[312904997,1706450051221,2429.28614215,0.00019723,5]
[312904998,1706450052583,391.0,0.00021696,7]
[312905000,1706450068544,14836.48264934,0.0001,2]
[312905001,1706450068573,29141.97973971,0.0001,2]
[312905004,1706450099816,1289.67593275,0.0001,2]
[312905005,1706450106400,1110.69036683,0.0001,2]
[312905006,1706450119805,1289.67593275,0.0001,2]
[312905007,1706450120400,1110.69036683,0.0001,2]
[312905008,1706450141805,591.96512963,0.0001,2]
[312905009,1706450142422,1109.52328082,0.0001,2]
[312905011,1706450194662,2997.14434346,0.0003,20]
[312905016,1706450250306,155.02635448,0.0001,2]
[312905022,1706450318322,2664.66022457,0.00016,5]
[312905028,1706450497750,5000.0,0.000222,7]
[312905033,1706450556831,3126.83377075,0.000222,7]
[312905039,1706450662496,200.0,0.00021516,7]
[312905040,1706450663397,200.0,0.00021516,7]
[312905041,1706450839897,-3749.22764229,0.00010337,2]
[312905042,1706450839918,-904.55199849,0.00010337,2]
[312905043,1706450839940,-7420.22035922,0.00010337,2]
[312905046,1706450913321,-639.21141232,0.0001023,2]
[312905047,1706450913347,-1697.47554063,0.0001023,2]
[312905048,1706450913367,-500.0,0.0001023,2]
[312905049,1706450913387,-171.10726963,0.00010231,2]
[312905050,1706450913412,-761.71762625,0.00010231,2]
[312905051,1706450913435,-1146.20081328,0.00010231,2]
[312905052,1706450913458,-160.55683341,0.00010232,2]
[312905053,1706450913481,-160.55683341,0.00010233,2]
[312905054,1706450913503,-160.55683341,0.00010233,2]
[312905055,1706450913526,-160.55683341,0.00010234,2]
[312905056,1706450913546,-160.55683341,0.00010234,2]
[312905057,1706450913571,-160.55683341,0.00010235,2]
[312905058,1706450913593,-2817.80173688,0.00010328,2]
[312905059,1706450913615,-21705.86650889,0.00010328,2]
[312905060,1706450913634,-453.28196782,0.00010329,2]
[312905061,1706450913653,-4818.41258945,0.00010329,2]
[312905062,1706450913683,-81268.82977941,0.00010329,2]
[312905063,1706450913709,-2041.12977295,0.0001033,2]
[312905064,1706450913732,-15634.47127894,0.0001033,2]
[312905065,1706450913757,-155.00775039,0.00010331,2]
[312905066,1706450913778,-588.93888333,0.00010331,2]
[312905067,1706450913799,-562.1560078,0.00010331,2]
[312905068,1706450913820,-620.0257606,0.00010331,2]
[312905069,1706450913840,-617.31766755,0.00010331,2]
[312905070,1706450913861,-14205.70663342,0.00010331,2]
[312905071,1706450923937,155.00775039,0.0001,2]
[312905072,1706450941307,13759.2755042,9.279e-05,2]
[312905073,1706450945949,155.00775039,0.0001,2]
[312905074,1706450958997,400.70447563,0.0001,2]
[312905075,1706450961494,1289.67593275,0.0001,2]
[312905076,1706450964057,155.00775039,0.0001,2]
[312905077,1706450972964,325.83381125,0.0001,2]
[312905078,1706450979407,452.50608225,0.0001,2]
[312905079,1706450981931,155.00775039,0.0001,2]
[312905080,1706451003934,155.00775039,0.0001,2]
[312905082,1706451021942,155.00775039,0.0001,2]
[312905111,1706451032151,-155.00775039,0.00010219,2]
[312905113,1706451032161,-155.00775039,0.00010219,2]
[312905115,1706451032170,-329.86581438,0.00010219,2]
[312905117,1706451032179,-302.2469024,0.0001022,2]
[312905119,1706451032189,-155.00775039,0.0001022,2]
[312905121,1706451032198,-19884.40674015,0.0001022,2]
[312905123,1706451032207,-199.40706309,0.00010221,2]
[312905125,1706451032216,-262.62109468,0.00010221,2]
[312905126,1706451032226,-155.0982102,0.00010221,2]
[312905127,1706451032235,-494.81287237,0.00010221,2]
[312905128,1706451032244,-2614.06211046,0.00010221,2]
[312905129,1706451032255,-6309.55778654,0.00010221,2]
[312905130,1706451032267,-11996.30889355,0.00010221,2]
[312905131,1706451032276,-1697.47554063,0.00010222,2]
[312905132,1706451032285,-1856.25502519,0.00010222,2]
[312905133,1706451032294,-1995.52315242,0.00010222,2]
[312905134,1706451032303,-617.31766755,0.00010222,2]
[312905135,1706451032312,-15634.47127894,0.00010222,2]
[312905136,1706451032321,-2817.80173688,0.00010222,2]
[312905137,1706451032330,-1294.9059591,0.00010222,2]
[312905138,1706451032339,-639.21141232,0.00010222,2]
[312905139,1706451032348,-171.10726963,0.00010223,2]
[312905140,1706451032358,-4818.41258945,0.00010223,2]
[312905141,1706451032367,-5214.02314025,0.00010223,2]
[312905142,1706451032376,-588.93888333,0.00010223,2]
[312905143,1706451032385,-18921.17730606,0.00010223,2]
[312905144,1706451032394,-500.0,0.00010223,2]
[312905145,1706451032403,-175.37542985,0.00010223,2]
[312905146,1706451032412,-1243.61210586,0.00010224,2]
[312905147,1706451032422,-3922.3869813,0.00010224,2]
[312905148,1706451032431,-1146.20081328,0.00010224,2]
[312905149,1706451032440,-904.55199849,0.00010224,2]
[312905150,1706451032449,-527.20617205,0.00010224,2]
[312905151,1706451032458,-37000.01230553,0.00010224,2]
[312905152,1706451032467,-3749.22764229,0.00010225,2]
[312905153,1706451032477,-81268.82977941,0.00010225,2]
[312905154,1706451032486,-170.66784928,0.00010325,2]
[312905155,1706451032496,-471.13604267,0.00010325,2]
[312905156,1706451032505,-2105.7958969,0.00010327,2]
[312905157,1706451032514,-593.87096872,0.00010328,2]
[312905158,1706451032525,-675.67147774,0.00010329,2]
[312905159,1706451032536,-155.00775039,0.00010337,2]
[312905160,1706451032546,-2076.27654373,0.00010338,2]
[312905161,1706451032558,-2041.45797236,0.00010344,2]
[312905162,1706451032569,-200.0,0.00010431,2]
[312905163,1706451032578,-200.0,0.00010431,2]
[312905164,1706451032587,-164.932497,0.00010458,2]
[312905165,1706451032596,-155.2565427,0.00010556,2]
[312905166,1706451032605,-166.8863606,0.00010556,2]
[312905167,1706451032614,-196.97481196,0.00010556,2]
[312905168,1706451032624,-157.93943544,0.00010556,2]
[312905169,1706451032634,-194.89526067,0.00010556,2]
[312905170,1706451032645,-208.17176317,0.00010556,2]
[312905171,1706451032655,-189.32811774,0.00010556,2]
[312905172,1706451032665,-306.54562829,0.00010556,2]
[312905173,1706451032674,-155.16540482,0.00010556,2]
[312905174,1706451032683,-916.60843138,0.00010558,2]
[312905175,1706451032693,-1242.37869698,0.00010562,2]
[312905176,1706451032702,-257.94319417,0.00010562,2]
[312905177,1706451032711,-155.50009392,0.00010562,2]
[312905178,1706451032721,-157.25655245,0.00010562,2]
[312905179,1706451032730,-24900.0,0.00010565,2]
[312905180,1706451032741,-200.0,0.00011474,2]
[312905181,1706451032752,-360.0,0.00011474,2]
[312905182,1706451032762,-250.0,0.00011567,2]
[312905183,1706451032772,-1493.0231482,0.00011569,2]
[312905184,1706451032781,-200.0,0.00012621,2]
[312905185,1706451032791,-200.0,0.00012621,2]
[312905186,1706451032802,-382.0,0.00012621,2]
[312905187,1706451032811,-163.45013288,0.000129,2]
[312905188,1706451032820,-164.93249697,0.00013242,2]
[312905189,1706451032829,-287.12977384,0.0001369,2]
[312905190,1706451032838,-1844.6102,0.00013699,2]
[312905191,1706451032847,-1677.216399,0.00013699,2]
[312905214,1706451038801,-261.37401822,0.00010218,2]
[312905215,1706451038810,-620.0257606,0.00010219,2]
[312905216,1706451038819,-430.38336185,0.00010219,2]
[312905224,1706451038893,-1312.33041789,0.00010219,2]
[312905226,1706451038903,-5000.0,0.0001022,2]
[312905228,1706451038917,-19720.32843806,0.0001022,2]
[312905230,1706451038927,-6930.1097854,0.00013699,2]
[312905232,1706451038936,-156.29332172,0.00013734,2]
[312905234,1706451038945,-161.92569869,0.00013734,2]
[312905236,1706451038955,-595.45090393,0.00013734,2]
[312905238,1706451038964,-200.0,0.00013883,2]
[312905239,1706451038973,-200.0,0.00013883,2]
[312905240,1706451038993,-200.0,0.00013883,2]
[312905241,1706451039004,-200.0,0.00013883,2]
[312905242,1706451039014,-296.0,0.00013883,2]
[312905243,1706451039024,-2726.22991836,0.00015,2]
[312905244,1706451039034,-788.87275899,0.00015,2]
[312905245,1706451039044,-688.68606905,0.00015,2]
[312905246,1706451039054,-297.00347325,0.00015,2]
[312905247,1706451039064,-200.0,0.00015271,2]
[312905248,1706451039074,-200.0,0.00015271,2]
[312905249,1706451039084,-200.0,0.00015271,2]
[312905250,1706451039094,-200.0,0.00015271,2]
[312905251,1706451039103,-200.0,0.00015271,2]
[312905252,1706451039113,-200.0,0.00015271,2]
[312905253,1706451039124,-336.0,0.00015271,2]
[312905254,1706451039134,-164.93249697,0.00016027,2]
[312905255,1706451039144,-978.95259375,0.00016433,2]
[312905256,1706451039153,-155.57794548,0.00016435,2]
[312905257,1706451039163,-200.0,0.00016798,2]
[312905258,1706451039173,-200.0,0.00016798,2]
[312905259,1706451039182,-200.0,0.00016798,2]
[312905260,1706451039192,-200.0,0.00016798,2]
[312905261,1706451039202,-200.0,0.00016798,2]
[312905262,1706451039211,-200.0,0.00016798,2]
[312905263,1706451039221,-200.0,0.00016798,2]
[312905264,1706451039231,-200.0,0.00016798,2]
[312905265,1706451039241,-200.0,0.00016798,2]
[312905266,1706451039250,-350.0,0.00016798,2]
[312905267,1706451039260,-200.0,0.00018478,2]
[312905268,1706451039270,-200.0,0.00018478,2]
[312905269,1706451039279,-200.0,0.00018478,2]
[312905270,1706451039289,-200.0,0.00018478,2]
[312905271,1706451039299,-200.0,0.00018478,2]
[312905272,1706451039308,-200.0,0.00018478,2]
[312905273,1706451039317,-200.0,0.00018478,2]
[312905274,1706451039327,-200.0,0.00018478,2]
[312905275,1706451039337,-200.0,0.00018478,2]
[312905276,1706451039346,-200.0,0.00018478,2]
[312905277,1706451039356,-200.0,0.00018478,2]
[312905278,1706451039366,-200.0,0.00018478,2]
[312905279,1706451039376,-200.0,0.00018478,2]
[312905280,1706451039386,-200.0,0.00018478,2]
[312905281,1706451039395,-210.0,0.00018478,2]
[312905282,1706451039404,-164.93249697,0.00018811,2]
[312905283,1706451039413,-1584.05603829,0.00019,2]
[312905284,1706451039422,-400.42421234,0.00019178,2]
[312905285,1706451039431,-170.245542,0.00019178,2]
[312905286,1706451039440,-169.131762,0.00019178,2]
[312905287,1706451039450,-169.6886538,0.00019178,2]
[312905288,1706451039459,-590.09050147,0.00019363,2]
[312905289,1706451039468,-303.81437787,0.000197,2]
[312905290,1706451039478,-548.85645513,0.00019817,2]
[312905291,1706451039487,-343.09681091,0.0002,2]
[312905292,1706451039496,-155.02325349,0.0002,2]
[312905293,1706451039506,-155.00775039,0.0002,2]
[312905294,1706451039515,-679.47851073,0.0002,2]
[312905295,1706451039525,-155.00775039,0.0002,2]
[312905296,1706451039534,-155.00775039,0.0002,2]
[312905297,1706451039543,-244.23818961,0.0002,2]
[312905298,1706451039552,-200.0,0.00020326,2]
[312905299,1706451039561,-200.0,0.00020326,2]
[312905300,1706451039570,-200.0,0.00020326,2]
[312905301,1706451039579,-200.0,0.00020326,2]
[312905302,1706451039588,-200.0,0.00020326,2]
[312905304,1706451039597,-200.0,0.00020326,2]
[312905306,1706451039606,-200.0,0.00020326,2]
[312905308,1706451039615,-200.0,0.00020326,2]
[312905310,1706451039625,-200.0,0.00020326,2]
[312905312,1706451039634,-200.0,0.00020326,2]
[312905313,1706451039643,-200.0,0.00020326,2]
[312905314,1706451039652,-200.0,0.00020326,2]
[312905315,1706451039662,-200.0,0.00020326,2]
[312905316,1706451039671,-200.0,0.00020326,2]
[312905317,1706451039681,-200.0,0.00020326,2]
[312905318,1706451039690,-200.0,0.00020326,2]
[312905319,1706451039699,-200.0,0.00020326,2]
[312905320,1706451039708,-200.0,0.00020326,2]
[312905321,1706451039718,-200.0,0.00020326,2]
[312905322,1706451039727,-200.0,0.00020326,2]
[312905323,1706451039737,-216.0,0.00020326,2]
[312905324,1706451039746,-1844.6102,0.00020548,2]
[312905325,1706451039755,-10958.72278317,0.00021299,2]
[312905326,1706451039764,-153.0,0.0002137,2]
[312905327,1706451039773,-153.0,0.0002137,2]
[312905328,1706451039783,-153.0,0.0002137,2]
[312905329,1706451039792,-632.06111571,0.000214,2]
[312905330,1706451039802,-3394.60090585,0.00021478,2]
[312905331,1706451039811,-282.45342529,0.00021514,2]
[312905332,1706451039821,-2086.73700022,0.00021516,2]
[312905333,1706451039928,-1828.0659992,0.00021516,2]
[312905334,1706451039938,-1110.30133816,0.00021516,2]
[312905335,1706451039948,-22985.47377738,0.00021516,2]
[312905336,1706451039961,-1696.79858508,0.00021516,2]
[312905337,1706451039973,-136452.42886,0.00021516,2]
[312905338,1706451039983,-164.93249697,0.00021595,2]
[312905339,1706451039992,-156.61472977,0.00021695,2]
[312905340,1706451040001,-155.49597422,0.00021695,2]
[312905341,1706451040011,-155.17453603,0.00021695,2]
[312905342,1706451040020,-171.95327391,0.00021695,2]
[312905343,1706451040029,-209.92711265,0.00021695,2]
[312905344,1706451040038,-156.21984121,0.00021695,2]
[312905345,1706451040047,-7966.81883748,0.00021695,2]
[312905346,1706451040056,-155.14514716,0.00021695,2]
[312905347,1706451040066,-1650.91924153,0.00021695,2]
[312905348,1706451040076,-179.40761383,0.00021695,2]
[312905349,1706451040085,-303.44835747,0.00021696,2]
[312905350,1706451040095,-608.61746145,0.00021696,2]
[312905351,1706451040104,-155.26019958,0.00021696,2]
[312905352,1706451040113,-1199.39136189,0.00021696,2]
[312905353,1706451040124,-166.53940446,0.00021696,2]
[312905354,1706451040132,-155.02116883,0.00021696,2]
[312905355,1706451040142,-2929.03323796,0.00021696,2]
[312905356,1706451040151,-68027.9095828,0.0002171,2]
[312905357,1706451040161,-16804.66517352,0.000218,2]
[312905358,1706451040170,-155.30192211,0.00021809,2]
[312905359,1706451040180,-214.33046875,0.0002181,2]
[312905360,1706451040189,-500.0,0.0002181,2]
[312905361,1706451040198,-500.0,0.0002181,2]
[312905363,1706451040208,-500.0,0.0002181,2]
[312905364,1706451040217,-500.0,0.0002181,2]
[312905365,1706451040226,-500.0,0.0002181,2]
[312905366,1706451040235,-500.0,0.0002181,2]
[312905367,1706451040245,-500.0,0.0002181,2]
[312905368,1706451040255,-337.70440343,0.0002181,2]
[312905369,1706451040264,-500.0,0.0002181,2]
[312905370,1706451040273,-500.0,0.0002181,2]
[312905371,1706451040282,-500.0,0.0002181,2]
[312905372,1706451040291,-647.02207258,0.0002181,2]
[312905373,1706451040301,-500.0,0.0002181,2]
[312905374,1706451040310,-500.0,0.0002181,2]
[312905375,1706451040319,-500.0,0.0002181,2]
[312905376,1706451040328,-156.35796755,0.0002181,2]
[312905377,1706451040337,-425.31454102,0.0002181,2]
[312905378,1706451040346,-634.03071431,0.0002181,2]
[312905379,1706451040355,-500.0,0.0002181,2]
[312905380,1706451040364,-500.0,0.0002181,2]
[312905381,1706451040374,-500.0,0.0002181,2]
[312905382,1706451040383,-500.0,0.0002181,2]
[312905383,1706451040392,-164.27609953,0.0002181,2]
[312905384,1706451040401,-500.0,0.0002181,2]
[312905385,1706451040411,-500.0,0.0002181,2]
[312905387,1706451040421,-500.0,0.0002181,2]
[312905389,1706451040430,-500.0,0.0002181,2]
[312905390,1706451040439,-500.0,0.0002181,2]
[312905391,1706451040448,-500.0,0.0002181,2]
[312905392,1706451040457,-500.0,0.0002181,2]
[312905393,1706451040466,-500.0,0.0002181,2]
[312905395,1706451040476,-500.0,0.0002181,2]
[312905397,1706451040485,-500.0,0.0002181,2]
[312905399,1706451040494,-500.0,0.0002181,2]
[312905400,1706451040504,-500.0,0.0002181,2]
[312905401,1706451040513,-447.53970492,0.0002181,2]
[312905402,1706451040522,-500.0,0.0002181,2]
[312905403,1706451040531,-450.11338084,0.0002181,2]
[312905404,1706451040540,-500.0,0.0002181,2]
[312905405,1706451040549,-500.0,0.0002181,2]
[312905407,1706451040558,-500.0,0.0002181,2]
[312905408,1706451040567,-500.0,0.0002181,2]
[312905409,1706451040577,-500.0,0.0002181,2]
[312905410,1706451040587,-500.0,0.0002181,2]
[312905411,1706451040596,-500.0,0.0002181,2]
[312905412,1706451040606,-500.0,0.0002181,2]
[312905413,1706451040614,-4742.69531772,0.00021811,2]
[312905414,1706451040624,-5000.0,0.00021811,2]
[312905415,1706451040633,-5000.0,0.00021811,2]
[312905416,1706451040642,-5000.0,0.00021811,2]
[312905417,1706451040651,-5000.0,0.00021811,2]
[312905418,1706451040661,-5000.0,0.00021811,2]
[312905419,1706451040670,-5000.0,0.00021811,2]
[312905420,1706451040679,-4666.21030199,0.00021811,2]
[312905421,1706451040688,-5000.0,0.00021811,2]
[312905422,1706451040697,-5000.0,0.00021811,2]
[312905423,1706451040706,-5000.0,0.00021811,2]
[312905424,1706451040715,-5000.0,0.00021811,2]
[312905425,1706451040724,-5000.0,0.00021811,2]
[312905426,1706451040733,-5000.0,0.00021811,2]
[312905427,1706451040742,-5000.0,0.00021811,2]
[312905428,1706451040751,-5000.0,0.00021811,2]
[312905429,1706451040760,-5000.0,0.00021811,2]
[312905430,1706451040769,-5000.0,0.00021811,2]
[312905431,1706451040779,-5000.0,0.00021811,2]
[312905432,1706451040787,-5000.0,0.00021811,2]
[312905433,1706451040796,-4421.14823405,0.00021811,2]
[312905434,1706451040806,-5000.0,0.00021811,2]
[312905435,1706451040815,-5000.0,0.00021811,2]
[312905436,1706451040824,-5000.0,0.00021811,2]
[312905437,1706451040833,-5000.0,0.00021811,2]
[312905438,1706451040842,-5000.0,0.00021811,2]
[312905439,1706451040851,-5000.0,0.00021811,2]
[312905440,1706451040860,-50000.0,0.00021811,2]
[312905441,1706451040869,-57876.0282449,0.00021811,2]
[312905442,1706451040878,-151.0,0.00021811,2]
[312905443,1706451040888,-10000.0,0.00021811,2]
[312905444,1706451040897,-10000.0,0.00021811,2]
[312905445,1706451040906,-1939.014502,0.00021811,2]
[312905446,1706451040919,-3891.36398,0.00021811,2]
[312905447,1706451040928,-3891.36398,0.00021811,2]
[312905448,1706451040937,-151.0,0.00021811,2]
[312905449,1706451040946,-779.85107251,0.00021811,2]
[312905450,1706451040957,-355.66978565,0.00021816,2]
[312905451,1706451040966,-500.0,0.00021816,2]
[312905452,1706451040975,-586.9872074,0.00021816,2]
[312905453,1706451040984,-298.48147438,0.00021816,2]
[312905454,1706451040994,-160.99225998,0.00021816,2]
[312905455,1706451041004,-500.0,0.00021816,2]
[312905456,1706451041014,-415.76505033,0.00021816,2]
[312905457,1706451041023,-500.0,0.00021816,2]
[312905458,1706451041032,-500.0,0.00021816,2]
[312905459,1706451041041,-481.11357031,0.00021816,2]
[312905460,1706451041050,-500.0,0.00021816,2]
[312905461,1706451041060,-500.0,0.00021816,2]
[312905462,1706451041069,-337.99586032,0.00021816,2]
[312905463,1706451041078,-276000.0,0.00021817,2]
[312905464,1706451041087,-151.0,0.00021817,2]
[312905465,1706451041096,-10000.0,0.00021817,2]
[312905466,1706451041105,-10000.0,0.00021817,2]
[312905467,1706451041113,-3891.36398,0.00021817,2]
[312905468,1706451041122,-3891.36398,0.00021817,2]
[312905469,1706451041131,-151.0,0.00021817,2]
[312905470,1706451041140,-151.0,0.00021817,2]
[312905471,1706451041149,-151.0,0.00021817,2]
[312905473,1706451041157,-967.771143,0.00021817,2]
[312905474,1706451041165,-967.771143,0.00021817,2]
[312905476,1706451041176,-166.80502533,0.00021914,2]
[312905477,1706451041186,-155.21938574,0.00021916,2]
[312905478,1706451041195,-155.03565572,0.00021916,2]
[312905479,1706451041204,-295.97060916,0.00021916,2]
[312905480,1706451041213,-234.20243293,0.00021916,2]
[312905481,1706451041222,-244.93862789,0.00021916,2]
[312905482,1706451041231,-487.97787853,0.00021916,2]
[312905483,1706451041241,-155.23562869,0.00021916,2]
[312905484,1706451041250,-155.05425932,0.00021916,2]
[312905485,1706451041259,-6125.58511233,0.00021916,2]
[312905486,1706451041269,-500.0,0.00021917,2]
[312905487,1706451041278,-500.0,0.00021917,2]
[312905488,1706451041289,-500.0,0.00021917,2]
[312905489,1706451041299,-500.0,0.00021917,2]
[312905490,1706451041309,-500.0,0.00021917,2]
[312905491,1706451041318,-500.0,0.00021917,2]
[312905492,1706451041327,-500.0,0.00021917,2]
[312905493,1706451041336,-2066.67,0.00021917,2]
[312905494,1706451041345,-478.62562592,0.00021917,2]
[312905495,1706451041355,-507.78936856,0.00021917,2]
[312905496,1706451041364,-500.0,0.00021917,2]
[312905497,1706451041441,-500.0,0.00021917,2]
[312905498,1706451041450,-500.0,0.00021917,2]
[312905499,1706451041459,-1132.6,0.00021917,2]
[312905500,1706451041468,-1002.23887986,0.00021917,2]
[312905501,1706451041477,-1113.49,0.00021917,2]
[312905502,1706451041486,-500.0,0.00021917,2]
[312905503,1706451041495,-500.0,0.00021917,2]
[312905504,1706451041504,-500.0,0.00021917,2]
[312905505,1706451041513,-500.0,0.00021917,2]
[312905506,1706451041522,-442.18075352,0.00021917,2]
[312905507,1706451041531,-500.0,0.00021917,2]
[312905508,1706451041540,-1034.67,0.00021917,2]
[312905509,1706451041549,-500.0,0.00021917,2]
[312905510,1706451041558,-151.0,0.00021917,2]
[312905511,1706451041567,-500.0,0.00021917,2]
[312905512,1706451041576,-595.27101256,0.00021917,2]